[Event "*** Titled Tuesday Blitz"]
[Site "Chess.com"]
[Date "2018.04.03"]
[Round "2"]
[White "JozefKneht"]
[Black "Misha_Bilous"]
[Result "1-0"]
[WhiteElo "2417"]
[BlackElo "2251"]
[TimeControl "180+2"]
[EndTime "13:23:50 PDT"]
[Termination "JozefKneht won by resignation"]

1. e4 {[%clk 0:03:01.9]} 1... c5 {[%clk 0:03:00.4]} 2. Nf3 {[%clk 0:03:01.9]}
2... d6 {[%clk 0:03:01.3]} 3. d4 {[%clk 0:03:02.8]} 3... cxd4 {[%clk 0:03:02.4]}
4. Nxd4 {[%clk 0:03:04.4]} 4... Nf6 {[%clk 0:03:03.7]} 5. Nc3 {[%clk 0:03:05.7]}
5... a6 {[%clk 0:03:05]} 6. Bg5 {[%clk 0:03:05.9]} 6... Nbd7 {[%clk 0:03:05.1]}
7. f4 {[%clk 0:03:07.1]} 7... Qc7 {[%clk 0:03:05.9]} 8. Qf3 {[%clk 0:03:07]}
8... b5 {[%clk 0:03:06.3]} 9. O-O-O {[%clk 0:02:51.3]} 9... Bb7 {[%clk
0:03:00.2]} 10. Nd5 {[%clk 0:02:32.2]} 10... Nxd5 {[%clk 0:02:39.7]} 11. exd5
{[%clk 0:02:32.3]} 11... e6 {[%clk 0:02:32.5]} 12. Nc6 {[%clk 0:01:45]} 12...
Bxc6 {[%clk 0:01:52.9]} 13. dxc6 {[%clk 0:01:44.9]} 13... Nb8 {[%clk 0:01:52.6]}
14. f5 {[%clk 0:01:45.2]} 14... Qxc6 {[%clk 0:01:50.4]} 15. Qe3 {[%clk
0:01:40.1]} 15... Qd7 {[%clk 0:01:37.9]} 16. fxe6 {[%clk 0:01:38.5]} 16... fxe6
{[%clk 0:01:38.5]} 17. Be2 {[%clk 0:01:36.1]} 17... Nc6 {[%clk 0:01:38.2]} 18.
Rhe1 {[%clk 0:01:30.8]} 18... Be7 {[%clk 0:01:32.2]} 19. Bf4 {[%clk 0:01:01.8]}
19... e5 {[%clk 0:01:25.5]} 20. Bf3 {[%clk 0:00:51]} 20... Rc8 {[%clk
0:01:20.1]} 21. Bg3 {[%clk 0:00:40.5]} 21... Nd4 {[%clk 0:01:17.4]} 22. Rxd4
{[%clk 0:00:35.1]} 22... exd4 {[%clk 0:01:12.9]} 23. Qe4 {[%clk 0:00:35.7]}
23... d3 {[%clk 0:01:07]} 24. Qxd3 {[%clk 0:00:14.6]} 24... O-O {[%clk
0:01:06.1]} 25. Kb1 {[%clk 0:00:16.5]} 25... Kh8 {[%clk 0:01:00.3]} 26. Bd5
{[%clk 0:00:16.5]} 26... Qc7 {[%clk 0:00:57.5]} 27. c3 {[%clk 0:00:16.6]} 27...
b4 {[%clk 0:00:56.8]} 28. cxb4 {[%clk 0:00:16.8]} 28... Bg5 {[%clk 0:00:57.7]}
29. a3 {[%clk 0:00:17.5]} 29... Rfe8 {[%clk 0:00:54.2]} 30. Rd1 {[%clk
0:00:16.9]} 30... Re3 {[%clk 0:00:54.2]} 31. Qf5 {[%clk 0:00:17.9]} 31... Bf6
{[%clk 0:00:52.7]} 32. Be4 {[%clk 0:00:17]} 32... Kg8 {[%clk 0:00:27.4]} 33.
Qxh7+ {[%clk 0:00:16.3]} 33... Kf7 {[%clk 0:00:27.4]} 34. Bg6+ {[%clk
0:00:15.5]} 34... Ke7 {[%clk 0:00:23.3]} 35. Bxd6+ {[%clk 0:00:15.2]} 35... Qxd6
{[%clk 0:00:23.7]} 36. Rxd6 {[%clk 0:00:16.6]} 36... Kxd6 {[%clk 0:00:24.1]} 37.
Qh5 {[%clk 0:00:16.3]} 37... Re1+ {[%clk 0:00:22.7]} 38. Ka2 {[%clk 0:00:16.7]}
38... Rcc1 {[%clk 0:00:23]} 39. Qf5 {[%clk 0:00:15.2]} 39... Ra1+ {[%clk
0:00:22.4]} 40. Kb3 {[%clk 0:00:15.4]} 40... Re3+ {[%clk 0:00:22.3]} 41. Ka4
{[%clk 0:00:14.7]} 41... Rc1 {[%clk 0:00:21.7]} 42. Qf4+ {[%clk 0:00:13.5]}
42... Re5 {[%clk 0:00:22.2]} 43. Qxc1 {[%clk 0:00:11.4]} 43... Rg5 {[%clk
0:00:20.4]} 44. g3 {[%clk 0:00:12.4]} 44... Rxg6 {[%clk 0:00:21.1]} 45. Qc5+
{[%clk 0:00:13.5]} 45... Kd7 {[%clk 0:00:22.1]} 46. Qf5+ {[%clk 0:00:13.7]}
46... Kc6 {[%clk 0:00:23.2]} 47. Qxg6 {[%clk 0:00:15.6]} 1-0

[Event "*** Titled Tuesday Blitz"]
[Site "Chess.com"]
[Date "2018.04.03"]
[Round "2"]
[White "SanQui14"]
[Black "wonderfultime"]
[Result "0-1"]
[WhiteElo "2204"]
[BlackElo "2754"]
[TimeControl "180+2"]
[EndTime "13:23:51 PDT"]
[Termination "wonderfultime won on time"]

1. e4 {[%clk 0:03:01.9]} 1... c5 {[%clk 0:02:58.7]} 2. Nf3 {[%clk 0:03:03.2]}
2... d6 {[%clk 0:02:59.9]} 3. d4 {[%clk 0:03:04.6]} 3... cxd4 {[%clk 0:03:01.8]}
4. Qxd4 {[%clk 0:03:06.3]} 4... Nf6 {[%clk 0:03:03.4]} 5. Bg5 {[%clk 0:03:06.9]}
5... Nc6 {[%clk 0:03:01.6]} 6. Bb5 {[%clk 0:03:07.6]} 6... Nd7 {[%clk
0:03:02.8]} 7. Bxc6 {[%clk 0:03:05.4]} 7... bxc6 {[%clk 0:03:04.7]} 8. c4 {[%clk
0:03:05.9]} 8... Qb6 {[%clk 0:03:04]} 9. Qxb6 {[%clk 0:03:06.2]} 9... axb6
{[%clk 0:03:01.9]} 10. O-O {[%clk 0:03:05.4]} 10... h6 {[%clk 0:03:03.3]} 11.
Be3 {[%clk 0:03:06.6]} 11... g6 {[%clk 0:02:55.2]} 12. Bd4 {[%clk 0:03:05.2]}
12... e5 {[%clk 0:02:48.7]} 13. Bc3 {[%clk 0:02:57.3]} 13... Nc5 {[%clk
0:02:46.3]} 14. Nbd2 {[%clk 0:02:57.3]} 14... Na4 {[%clk 0:02:47.1]} 15. Rfc1
{[%clk 0:02:45.4]} 15... Be7 {[%clk 0:02:45.3]} 16. h3 {[%clk 0:02:20.8]} 16...
Be6 {[%clk 0:02:45.5]} 17. Nf1 {[%clk 0:02:15]} 17... O-O {[%clk 0:02:35.1]} 18.
Bb4 {[%clk 0:02:00.3]} 18... Nxb2 {[%clk 0:02:25.4]} 19. Nxe5 {[%clk 0:01:56.6]}
19... Bf6 {[%clk 0:02:01.8]} 20. Nxc6 {[%clk 0:01:35.1]} 20... Nd3 {[%clk
0:02:00.5]} 21. e5 {[%clk 0:01:26.7]} 21... Nxe5 {[%clk 0:01:56.3]} 22. Nxe5
{[%clk 0:01:14.3]} 22... Bxe5 {[%clk 0:01:58.2]} 23. Bc3 {[%clk 0:01:14.4]}
23... Bf4 {[%clk 0:01:54.9]} 24. Bd2 {[%clk 0:01:10.8]} 24... Be5 {[%clk
0:01:52.8]} 25. Bc3 {[%clk 0:01:11.4]} 25... Ra4 {[%clk 0:01:52.1]} 26. Ne3
{[%clk 0:00:49.6]} 26... Rc8 {[%clk 0:01:41.2]} 27. Rab1 {[%clk 0:00:43]} 27...
Bxc3 {[%clk 0:01:26.6]} 28. Rxc3 {[%clk 0:00:43.7]} 28... d5 {[%clk 0:01:27.4]}
29. cxd5 {[%clk 0:00:18.6]} 29... Rxc3 {[%clk 0:01:27.9]} 30. dxe6 {[%clk
0:00:19.9]} 30... fxe6 {[%clk 0:01:28.1]} 31. Rxb6 {[%clk 0:00:20.9]} 31... Rxa2
{[%clk 0:01:06.9]} 32. Rxe6 {[%clk 0:00:21.5]} 32... Rc1+ {[%clk 0:01:08.1]} 33.
Kh2 {[%clk 0:00:21.6]} 33... Kf7 {[%clk 0:01:09.3]} 34. Rb6 {[%clk 0:00:19]}
34... h5 {[%clk 0:01:07]} 35. Rb7+ {[%clk 0:00:19.6]} 35... Kg8 {[%clk 0:01:06]}
36. Rb8+ {[%clk 0:00:20.6]} 36... Kg7 {[%clk 0:01:07.3]} 37. Rb7+ {[%clk
0:00:21.6]} 37... Kh6 {[%clk 0:01:08.9]} 38. Kg3 {[%clk 0:00:15.4]} 38... Rc6
{[%clk 0:01:00.6]} 39. Rf7 {[%clk 0:00:16]} 39... Rb6 {[%clk 0:00:41.8]} 40. Nd5
{[%clk 0:00:14.8]} 40... Rb3+ {[%clk 0:00:42.5]} 41. Ne3 {[%clk 0:00:15.3]}
41... g5 {[%clk 0:00:40.6]} 42. Rf6+ {[%clk 0:00:11]} 42... Kg7 {[%clk
0:00:41.7]} 43. Rc6 {[%clk 0:00:07.8]} 43... Rbb2 {[%clk 0:00:38.3]} 44. Rc7+
{[%clk 0:00:04.3]} 44... Kf6 {[%clk 0:00:38.8]} 45. Rc6+ {[%clk 0:00:05.2]}
45... Kf7 {[%clk 0:00:40.2]} 46. Rc7+ {[%clk 0:00:06.3]} 46... Ke6 {[%clk
0:00:39.2]} 47. Rc6+ {[%clk 0:00:07.4]} 47... Ke7 {[%clk 0:00:35.3]} 48. Rc7+
{[%clk 0:00:07.9]} 48... Ke8 {[%clk 0:00:36.8]} 49. Rc8+ {[%clk 0:00:08.7]}
49... Kd7 {[%clk 0:00:38.4]} 50. Rf8 {[%clk 0:00:09.5]} 50... Ke6 {[%clk
0:00:39.8]} 51. Rh8 {[%clk 0:00:02.1]} 51... Rxf2 {[%clk 0:00:29]} 52. Rxh5
{[%clk 0:00:02.4]} 52... Rfe2 {[%clk 0:00:30.9]} 53. Rh6+ {[%clk 0:00:02.3]}
53... Kf7 {[%clk 0:00:31.1]} 0-1

[Event "*** Titled Tuesday Blitz"]
[Site "Chess.com"]
[Date "2018.04.03"]
[Round "2"]
[White "KenanGarayev"]
[Black "nickmatta"]
[Result "0-1"]
[WhiteElo "2511"]
[BlackElo "2295"]
[TimeControl "180+2"]
[EndTime "13:24:11 PDT"]
[Termination "nickmatta won on time"]

1. d4 {[%clk 0:03:01.5]} 1... Nf6 {[%clk 0:03:00.8]} 2. c4 {[%clk 0:02:58.6]}
2... g6 {[%clk 0:03:02]} 3. Nc3 {[%clk 0:02:56.3]} 3... d5 {[%clk 0:03:02.2]} 4.
cxd5 {[%clk 0:02:57]} 4... Nxd5 {[%clk 0:03:04.1]} 5. e4 {[%clk 0:02:58.1]} 5...
Nxc3 {[%clk 0:03:05.6]} 6. bxc3 {[%clk 0:02:59.9]} 6... Bg7 {[%clk 0:03:07.2]}
7. Bc4 {[%clk 0:02:52.7]} 7... c5 {[%clk 0:03:06.6]} 8. Ne2 {[%clk 0:02:51.2]}
8... O-O {[%clk 0:03:07.4]} 9. Be3 {[%clk 0:02:45]} 9... Nc6 {[%clk 0:02:57.4]}
10. Rc1 {[%clk 0:02:37.7]} 10... cxd4 {[%clk 0:02:45.3]} 11. cxd4 {[%clk
0:02:35.6]} 11... Qa5+ {[%clk 0:02:41]} 12. Kf1 {[%clk 0:02:35.9]} 12... Rd8
{[%clk 0:02:30.2]} 13. h4 {[%clk 0:02:27.7]} 13... Ne5 {[%clk 0:01:19.7]} 14.
Bd2 {[%clk 0:02:13.7]} 14... Qb6 {[%clk 0:00:48.5]} 15. dxe5 {[%clk 0:02:06.7]}
15... Bh6 {[%clk 0:00:40.4]} 16. f4 {[%clk 0:01:56.7]} 16... Bg4 {[%clk
0:00:34]} 17. Qc2 {[%clk 0:01:48.4]} 17... Rac8 {[%clk 0:00:33.1]} 18. Qc3
{[%clk 0:01:36.5]} 18... Rc6 {[%clk 0:00:10.1]} 19. Be3 {[%clk 0:01:32.3]} 19...
Qc7 {[%clk 0:00:11.3]} 20. Qb3 {[%clk 0:01:31.9]} 20... e6 {[%clk 0:00:04.6]}
21. Kf2 {[%clk 0:01:31]} 21... a6 {[%clk 0:00:05]} 22. a4 {[%clk 0:01:30]} 22...
Bxe2 {[%clk 0:00:03.4]} 23. Bxe2 {[%clk 0:01:29.2]} 23... Rc8 {[%clk 0:00:02.4]}
24. Rxc6 {[%clk 0:01:26.3]} 24... bxc6 {[%clk 0:00:04.3]} 25. Rb1 {[%clk
0:01:23.5]} 25... Bf8 {[%clk 0:00:03.6]} 26. Bxa6 {[%clk 0:01:22.8]} 26... Ra8
{[%clk 0:00:03.6]} 27. Be2 {[%clk 0:01:23.6]} 27... Qd8 {[%clk 0:00:04.9]} 28.
Rd1 {[%clk 0:01:21.6]} 28... Qxh4+ {[%clk 0:00:05.6]} 29. Kg1 {[%clk 0:01:20.8]}
29... c5 {[%clk 0:00:03.9]} 30. Bb5 {[%clk 0:01:16.4]} 30... Bh6 {[%clk
0:00:04.6]} 31. Rf1 {[%clk 0:01:13.4]} 31... Rd8 {[%clk 0:00:06]} 32. a5 {[%clk
0:01:12.9]} 32... Qg3 {[%clk 0:00:04.8]} 33. a6 {[%clk 0:01:10.5]} 33... Rd2
{[%clk 0:00:05.3]} 34. Bxd2 {[%clk 0:00:57]} 34... Qxb3 {[%clk 0:00:06.1]} 35.
Ra1 {[%clk 0:00:58.2]} 35... Qb2 {[%clk 0:00:04.3]} 36. Ra4 {[%clk 0:00:47.4]}
36... Qxb5 {[%clk 0:00:03.5]} 37. Ra5 {[%clk 0:00:48.1]} 37... Qb1+ {[%clk
0:00:03.9]} 38. Kh2 {[%clk 0:00:49.6]} 38... Qxe4 {[%clk 0:00:04.9]} 39. a7
{[%clk 0:00:51.2]} 39... Qa8 {[%clk 0:00:06.4]} 40. Be3 {[%clk 0:00:52]} 40...
Bf8 {[%clk 0:00:07]} 41. g3 {[%clk 0:00:51]} 41... Be7 {[%clk 0:00:07.5]} 42.
Kg1 {[%clk 0:00:50.2]} 42... Kg7 {[%clk 0:00:08.5]} 43. Kf2 {[%clk 0:00:51.5]}
43... Bd8 {[%clk 0:00:09.1]} 44. Ra6 {[%clk 0:00:52]} 44... Be7 {[%clk 0:00:08]}
45. Ke2 {[%clk 0:00:52.7]} 45... h5 {[%clk 0:00:05.6]} 46. Kd3 {[%clk
0:00:53.5]} 46... Qd8+ {[%clk 0:00:02.9]} 47. Kc3 {[%clk 0:00:53.2]} 47... Qa8
{[%clk 0:00:04.8]} 48. Kc4 {[%clk 0:00:52]} 48... Qd5+ {[%clk 0:00:05.5]} 49.
Kb5 {[%clk 0:00:51.8]} 49... Qd3+ {[%clk 0:00:05.5]} 50. Kb6 {[%clk 0:00:51.9]}
50... Bd8+ {[%clk 0:00:07]} 51. Kb7 {[%clk 0:00:49.2]} 51... Qb5+ {[%clk
0:00:08.4]} 52. Kc8 {[%clk 0:00:47.3]} 52... Qxa6+ {[%clk 0:00:09.5]} 0-1

[Event "*** Titled Tuesday Blitz"]
[Site "Chess.com"]
[Date "2018.04.03"]
[Round "2"]
[White "Cryptochess"]
[Black "AdrianaNikolova"]
[Result "0-1"]
[WhiteElo "2393"]
[BlackElo "2364"]
[TimeControl "180+2"]
[EndTime "13:24:16 PDT"]
[Termination "AdrianaNikolova won by resignation"]

1. e4 {[%clk 0:03:01.1]} 1... c5 {[%clk 0:02:55.5]} 2. Nf3 {[%clk 0:03:01.7]}
2... d6 {[%clk 0:02:55.5]} 3. d4 {[%clk 0:03:03.3]} 3... cxd4 {[%clk 0:02:57.4]}
4. Nxd4 {[%clk 0:03:05]} 4... Nf6 {[%clk 0:02:58.7]} 5. Nc3 {[%clk 0:03:06.7]}
5... Nc6 {[%clk 0:02:59.3]} 6. Be3 {[%clk 0:03:06.9]} 6... e5 {[%clk 0:02:59.9]}
7. Nb3 {[%clk 0:03:04]} 7... Be7 {[%clk 0:03:00.5]} 8. Be2 {[%clk 0:02:59.5]}
8... Be6 {[%clk 0:03:01.8]} 9. O-O {[%clk 0:03:00]} 9... O-O {[%clk 0:03:01.6]}
10. f4 {[%clk 0:03:01.4]} 10... exf4 {[%clk 0:02:53.9]} 11. Rxf4 {[%clk
0:03:03.3]} 11... Ne5 {[%clk 0:02:55.2]} 12. Qe1 {[%clk 0:03:02.9]} 12... Ng6
{[%clk 0:02:54.4]} 13. Rf3 {[%clk 0:03:00.8]} 13... Rc8 {[%clk 0:02:56.3]} 14.
Rd1 {[%clk 0:02:56.3]} 14... Ne5 {[%clk 0:02:50.8]} 15. Rg3 {[%clk 0:02:55.3]}
15... Kh8 {[%clk 0:02:50.9]} 16. Nd4 {[%clk 0:02:36.7]} 16... Qa5 {[%clk
0:02:44.2]} 17. Nf5 {[%clk 0:02:29.6]} 17... Bxf5 {[%clk 0:02:43.5]} 18. exf5
{[%clk 0:02:31.5]} 18... d5 {[%clk 0:02:38.9]} 19. Bd4 {[%clk 0:02:23.5]} 19...
Bc5 {[%clk 0:02:38.7]} 20. Qf2 {[%clk 0:02:21.7]} 20... Bxd4 {[%clk 0:02:32.5]}
21. Qxd4 {[%clk 0:02:23.6]} 21... Qc5 {[%clk 0:02:31]} 22. Rh3 {[%clk
0:02:00.5]} 22... Nc4 {[%clk 0:02:19.9]} 23. Bxc4 {[%clk 0:01:06.1]} 23... dxc4
{[%clk 0:02:18.7]} 24. Qxc5 {[%clk 0:01:06.1]} 24... Rxc5 {[%clk 0:02:20.6]} 25.
Rf3 {[%clk 0:01:06.8]} 25... b5 {[%clk 0:02:19.2]} 26. Rd6 {[%clk 0:01:05.3]}
26... b4 {[%clk 0:02:16.2]} 27. Ne2 {[%clk 0:01:06.5]} 27... Re8 {[%clk
0:02:14.8]} 28. Nd4 {[%clk 0:01:05.8]} 28... a5 {[%clk 0:02:11.1]} 29. Kf1
{[%clk 0:01:04.7]} 29... Rce5 {[%clk 0:02:10.9]} 30. g3 {[%clk 0:00:51.6]} 30...
Ne4 {[%clk 0:02:04]} 31. Rd7 {[%clk 0:00:47.1]} 31... Nd2+ {[%clk 0:02:04.7]}
32. Kf2 {[%clk 0:00:48.6]} 32... Nxf3 {[%clk 0:02:04.1]} 33. Kxf3 {[%clk
0:00:50.5]} 33... Re3+ {[%clk 0:02:01.5]} 34. Kf2 {[%clk 0:00:51.1]} 34... R3e7
{[%clk 0:02:01.4]} 35. Rd5 {[%clk 0:00:51.2]} 35... a4 {[%clk 0:01:59.4]} 36.
Rc5 {[%clk 0:00:48.5]} 36... b3 {[%clk 0:01:58.8]} 37. Rxc4 {[%clk 0:00:39.9]}
37... bxc2 {[%clk 0:01:45.3]} 38. Rxc2 {[%clk 0:00:40.8]} 38... Re4 {[%clk
0:01:44.1]} 39. Nf3 {[%clk 0:00:39.7]} 39... Rb4 {[%clk 0:01:41.2]} 40. Ne1
{[%clk 0:00:39.1]} 40... h5 {[%clk 0:01:36.6]} 41. Nd3 {[%clk 0:00:40]} 41...
Rb5 {[%clk 0:01:37.8]} 42. Rc5 {[%clk 0:00:33.1]} 42... Rxc5 {[%clk 0:01:35.3]}
43. Nxc5 {[%clk 0:00:35]} 43... a3 {[%clk 0:01:35.3]} 44. bxa3 {[%clk
0:00:27.4]} 44... Re5 {[%clk 0:01:36.1]} 45. Nb3 {[%clk 0:00:28.9]} 45... Rxf5+
{[%clk 0:01:35.6]} 46. Ke3 {[%clk 0:00:30.8]} 46... g5 {[%clk 0:01:33.6]} 47. a4
{[%clk 0:00:31.8]} 47... Re5+ {[%clk 0:01:28.5]} 48. Kd3 {[%clk 0:00:29.1]}
48... f5 {[%clk 0:01:28.6]} 49. a5 {[%clk 0:00:30]} 49... f4 {[%clk 0:01:29.2]}
50. gxf4 {[%clk 0:00:30.6]} 50... gxf4 {[%clk 0:01:31]} 51. a6 {[%clk
0:00:32.2]} 51... Re7 {[%clk 0:01:25]} 52. Nd4 {[%clk 0:00:30.9]} 52... Ra7
{[%clk 0:01:17.6]} 53. Ke4 {[%clk 0:00:31.7]} 53... Rxa6 {[%clk 0:01:18.7]} 54.
Kxf4 {[%clk 0:00:32.6]} 54... Ra4 {[%clk 0:01:14.4]} 55. Ke5 {[%clk 0:00:33.8]}
55... Kg7 {[%clk 0:01:11.8]} 56. Nf3 {[%clk 0:00:21.5]} 56... Kg6 {[%clk
0:01:05.6]} 57. h4 {[%clk 0:00:20.8]} 57... Rxa2 {[%clk 0:00:58.4]} 58. Kf4
{[%clk 0:00:22.7]} 58... Rg2 {[%clk 0:00:53.1]} 59. Ne5+ {[%clk 0:00:22.6]}
59... Kf6 {[%clk 0:00:53.7]} 60. Nf3 {[%clk 0:00:22.4]} 60... Rg4+ {[%clk
0:00:53.3]} 61. Ke3 {[%clk 0:00:24]} 61... Ra4 {[%clk 0:00:50.1]} 62. Kf2 {[%clk
0:00:23.3]} 62... Kf5 {[%clk 0:00:51]} 63. Kg3 {[%clk 0:00:24.9]} 63... Ra3
{[%clk 0:00:51.6]} 64. Kg2 {[%clk 0:00:26.5]} 64... Kg4 {[%clk 0:00:52.1]} 65.
Ne5+ {[%clk 0:00:27.4]} 65... Kxh4 {[%clk 0:00:52.9]} 66. Nf3+ {[%clk
0:00:29.1]} 66... Kg4 {[%clk 0:00:52.9]} 67. Ne5+ {[%clk 0:00:30.5]} 67... Kf4
{[%clk 0:00:52.9]} 68. Ng6+ {[%clk 0:00:31.7]} 68... Kf5 {[%clk 0:00:52]} 69.
Nh4+ {[%clk 0:00:32.2]} 69... Kg4 {[%clk 0:00:53.1]} 70. Ng6 {[%clk 0:00:33.8]}
70... Ra2+ {[%clk 0:00:54.5]} 71. Kh1 {[%clk 0:00:34.1]} 71... Kg3 {[%clk
0:00:52.5]} 0-1

[Event "*** Titled Tuesday Blitz"]
[Site "Chess.com"]
[Date "2018.04.03"]
[Round "2"]
[White "GasconJR"]
[Black "Vusatiuk_Vladimir"]
[Result "1-0"]
[WhiteElo "2331"]
[BlackElo "2197"]
[TimeControl "180+2"]
[EndTime "13:24:20 PDT"]
[Termination "GasconJR won on time"]

1. e4 {[%clk 0:03:01.9]} 1... c5 {[%clk 0:02:56.7]} 2. Nf3 {[%clk 0:03:02.9]}
2... d6 {[%clk 0:02:57.7]} 3. d4 {[%clk 0:03:04]} 3... cxd4 {[%clk 0:02:59.3]}
4. Nxd4 {[%clk 0:03:05.9]} 4... Nf6 {[%clk 0:03:00.8]} 5. Nc3 {[%clk 0:03:07.1]}
5... a6 {[%clk 0:03:02.2]} 6. Bg5 {[%clk 0:03:07.7]} 6... Nbd7 {[%clk 0:03:00]}
7. Qe2 {[%clk 0:02:59.6]} 7... Qc7 {[%clk 0:02:58.1]} 8. O-O-O {[%clk
0:02:57.1]} 8... e6 {[%clk 0:02:58.7]} 9. f4 {[%clk 0:02:56.9]} 9... Be7 {[%clk
0:02:59.7]} 10. g4 {[%clk 0:02:56.3]} 10... b6 {[%clk 0:02:54.8]} 11. Bxf6
{[%clk 0:02:53.2]} 11... Bxf6 {[%clk 0:02:51]} 12. g5 {[%clk 0:02:53.8]} 12...
Be7 {[%clk 0:02:51.1]} 13. h4 {[%clk 0:02:53.1]} 13... Bb7 {[%clk 0:02:51.9]}
14. Rh3 {[%clk 0:02:53.5]} 14... Nc5 {[%clk 0:02:52.2]} 15. Bg2 {[%clk
0:02:48.3]} 15... b5 {[%clk 0:02:47.4]} 16. a3 {[%clk 0:02:49.3]} 16... Rc8
{[%clk 0:02:41.4]} 17. Kb1 {[%clk 0:02:49.8]} 17... Qb6 {[%clk 0:02:19.6]} 18.
b4 {[%clk 0:02:03.8]} 18... Na4 {[%clk 0:02:09.9]} 19. Nxa4 {[%clk 0:02:00.5]}
19... bxa4 {[%clk 0:02:08]} 20. c4 {[%clk 0:01:56.6]} 20... a5 {[%clk
0:02:01.9]} 21. Nb5 {[%clk 0:01:55.7]} 21... Ba6 {[%clk 0:02:01.1]} 22. f5
{[%clk 0:01:50.6]} 22... Bxb5 {[%clk 0:01:59.1]} 23. cxb5 {[%clk 0:01:51.7]}
23... axb4 {[%clk 0:01:52.2]} 24. axb4 {[%clk 0:01:53.6]} 24... Rb8 {[%clk
0:01:46.6]} 25. Rc3 {[%clk 0:01:36.2]} 25... O-O {[%clk 0:01:40.5]} 26. Bf1
{[%clk 0:01:26.5]} 26... Rfc8 {[%clk 0:01:39.9]} 27. Rdc1 {[%clk 0:01:27.5]}
27... Rxc3 {[%clk 0:01:33.9]} 28. Rxc3 {[%clk 0:01:29.4]} 28... d5 {[%clk
0:01:29]} 29. exd5 {[%clk 0:01:26.8]} 29... Bxb4 {[%clk 0:01:26.7]} 30. Rc6
{[%clk 0:01:21.7]} 30... Qb7 {[%clk 0:01:12.6]} 31. dxe6 {[%clk 0:01:20.3]}
31... fxe6 {[%clk 0:01:12.4]} 32. Qxe6+ {[%clk 0:01:18.8]} 32... Kh8 {[%clk
0:01:10.8]} 33. f6 {[%clk 0:01:17.6]} 33... Bf8 {[%clk 0:01:09.9]} 34. Bc4
{[%clk 0:01:17.1]} 34... Bb4 {[%clk 0:01:01.4]} 35. f7 {[%clk 0:01:17.1]} 35...
Bf8 {[%clk 0:01:00]} 36. h5 {[%clk 0:01:00.7]} 36... Qa7 {[%clk 0:00:35.1]} 37.
b6 {[%clk 0:00:53.1]} 37... Qa5 {[%clk 0:00:28.2]} 38. Bd3 {[%clk 0:00:34.4]}
38... Qb4+ {[%clk 0:00:26]} 39. Ka2 {[%clk 0:00:27.5]} 39... Rd8 {[%clk
0:00:26]} 40. Bc2 {[%clk 0:00:06.1]} 40... Rd2 {[%clk 0:00:08.4]} 41. Rc8 {[%clk
0:00:03.9]} 41... Qa3+ {[%clk 0:00:06.3]} 42. Kb1 {[%clk 0:00:05.5]} 42... Rf2
{[%clk 0:00:05.1]} 43. Rxf8+ {[%clk 0:00:06.9]} 43... Qxf8 {[%clk 0:00:05.2]}
44. Qe8 {[%clk 0:00:08.7]} 44... Rxf7 {[%clk 0:00:04.9]} 45. Qxf8+ {[%clk
0:00:10.2]} 45... Rxf8 {[%clk 0:00:06.1]} 46. Be4 {[%clk 0:00:09.8]} 46... Rb8
{[%clk 0:00:06.7]} 47. b7 {[%clk 0:00:11.1]} 47... Kg8 {[%clk 0:00:08]} 48. Ka2
{[%clk 0:00:12.6]} 48... Kf8 {[%clk 0:00:09]} 49. Ka3 {[%clk 0:00:14.5]} 49...
h6 {[%clk 0:00:07.6]} 50. Kxa4 {[%clk 0:00:16.4]} 50... Ke7 {[%clk 0:00:06.8]}
51. gxh6 {[%clk 0:00:16.6]} 51... gxh6 {[%clk 0:00:07.6]} 52. Kb5 {[%clk
0:00:18.1]} 52... Kd7 {[%clk 0:00:08.7]} 53. Kb6 {[%clk 0:00:19.5]} 53... Rf8
{[%clk 0:00:08.9]} 54. Bf5+ {[%clk 0:00:19.8]} 54... Kd6 {[%clk 0:00:09.8]} 55.
Bc8 {[%clk 0:00:20.8]} 55... Rf1 {[%clk 0:00:05.4]} 56. b8=Q+ {[%clk 0:00:21.7]}
1-0